[Event "Live Chess"]
[Site "Chess.com"]
[Date "2023.05.20"]
[Round "-"]
[White "Delacorta"]
[Black "JoeRoot66"]
[Result "0-1"]
[WhiteElo "1420"]
[BlackElo "1908"]
[TimeControl "300"]
[EndTime "13:57:23 PDT"]
[Termination "JoeRoot66 won by resignation"]

1. d4 {[%clk 0:04:58.1]} 1... d5 {[%clk 0:04:55.3]} 2. Nf3 {[%clk 0:04:56.9]}
2... Nf6 {[%clk 0:04:49.8]} 3. b3 {[%clk 0:04:53.9]} 3... Bf5 {[%clk 0:04:46.6]}
4. e3 {[%clk 0:04:49.8]} 4... e6 {[%clk 0:04:44.3]} 5. Bd3 {[%clk 0:04:48.1]}
5... Bxd3 {[%clk 0:04:41.4]} 6. Qxd3 {[%clk 0:04:47.3]} 6... c5 {[%clk
0:04:40.2]} 7. Bb2 {[%clk 0:04:44.4]} 7... Nc6 {[%clk 0:04:38.9]} 8. a3 {[%clk
0:04:42.5]} 8... cxd4 {[%clk 0:04:37.7]} 9. exd4 {[%clk 0:04:40.5]} 9... Bd6
{[%clk 0:04:35]} 10. O-O {[%clk 0:04:38.6]} 10... O-O {[%clk 0:04:33.5]} 11. Ne5
{[%clk 0:04:35.4]} 11... Qc7 {[%clk 0:04:27.1]} 12. f4 {[%clk 0:04:33.9]} 12...
Ne4 {[%clk 0:04:24.5]} 13. Nd2 {[%clk 0:04:16.8]} 13... Nxd2 {[%clk 0:04:18.5]}
14. Qxd2 {[%clk 0:04:15.5]} 14... f6 {[%clk 0:04:17.3]} 15. Nxc6 {[%clk
0:03:58.1]} 15... Qxc6 {[%clk 0:04:12.1]} 16. Rac1 {[%clk 0:03:51]} 16... Rac8
{[%clk 0:04:09.7]} 17. c4 {[%clk 0:03:48.6]} 17... Qa6 {[%clk 0:04:00.8]} 18. c5
{[%clk 0:03:43.1]} 18... Bc7 {[%clk 0:03:53.1]} 19. Rfe1 {[%clk 0:03:21.8]}
19... Rfe8 {[%clk 0:03:48.1]} 20. g3 {[%clk 0:03:16.8]} 20... b6 {[%clk
0:03:39.5]} 21. c6 {[%clk 0:03:08]} 21... Bd6 {[%clk 0:03:35.2]} 22. b4 {[%clk
0:03:02.7]} 22... Qb5 {[%clk 0:03:26.4]} 23. Qc2 {[%clk 0:02:35]} 23... Rc7
{[%clk 0:02:44.4]} 24. Re3 {[%clk 0:02:30.1]} 24... Kf7 {[%clk 0:02:38.9]} 25.
Qe2 {[%clk 0:02:14.8]} 25... Qxe2 {[%clk 0:02:29.2]} 26. Rxe2 {[%clk 0:02:14.7]}
26... Rec8 {[%clk 0:02:21.9]} 27. b5 {[%clk 0:02:13.9]} 27... Re7 {[%clk
0:02:12.1]} 28. Rce1 {[%clk 0:02:11.7]} 28... Rce8 {[%clk 0:02:03.6]} 29. Rc2
{[%clk 0:02:05]} 29... g5 {[%clk 0:01:45.2]} 30. Rf1 {[%clk 0:01:40]} 30... gxf4
{[%clk 0:01:42.5]} 31. gxf4 {[%clk 0:01:39.3]} 31... Rg8+ {[%clk 0:01:37]} 32.
Kh1 {[%clk 0:01:32.6]} 32... Rg4 {[%clk 0:01:25.7]} 33. Bc1 {[%clk 0:01:25.3]}
33... h5 {[%clk 0:01:08.1]} 34. Rg2 {[%clk 0:01:23.1]} 34... Kg6 {[%clk
0:01:02.1]} 35. Rxg4+ {[%clk 0:01:19.1]} 35... hxg4 {[%clk 0:01:02]} 36. Kg2
{[%clk 0:01:18.4]} 36... e5 {[%clk 0:00:56.4]} 37. Re1 {[%clk 0:00:59.9]} 37...
e4 {[%clk 0:00:37.8]} 38. Kg3 {[%clk 0:00:55.3]} 38... Kf5 {[%clk 0:00:29.2]}
39. a4 {[%clk 0:00:53.7]} 39... Rh7 {[%clk 0:00:27.4]} 40. Bd2 {[%clk
0:00:44.3]} 40... Bxf4+ {[%clk 0:00:25.5]} 41. Bxf4 {[%clk 0:00:42.2]} 41...
Rh3+ {[%clk 0:00:24.1]} 42. Kg2 {[%clk 0:00:40.5]} 42... Kxf4 {[%clk 0:00:22.5]}
43. c7 {[%clk 0:00:38.9]} 43... Rc3 {[%clk 0:00:20.9]} 44. Rf1+ {[%clk
0:00:35.1]} 44... Kg5 {[%clk 0:00:15.7]} 45. h3 {[%clk 0:00:17.6]} 45... gxh3+
{[%clk 0:00:12.7]} 46. Kh2 {[%clk 0:00:17.1]} 46... Rxc7 {[%clk 0:00:11]} 47.
Rg1+ {[%clk 0:00:16.5]} 47... Kf4 {[%clk 0:00:10]} 48. Rf1+ {[%clk 0:00:16.4]}
48... Ke3 {[%clk 0:00:09.5]} 49. Re1+ {[%clk 0:00:15.8]} 49... Kxd4 {[%clk
0:00:09]} 50. Rf1 {[%clk 0:00:15.4]} 50... e3 {[%clk 0:00:08.4]} 51. Rxf6 {[%clk
0:00:14.8]} 51... Kd3 {[%clk 0:00:07.7]} 52. Rf4 {[%clk 0:00:14.7]} 52... e2
{[%clk 0:00:06.9]} 53. Rf1 {[%clk 0:00:14.6]} 53... exf1=Q {[%clk 0:00:06.1]}
54. Kg3 {[%clk 0:00:13.5]} 54... Qg2+ {[%clk 0:00:06]} 55. Kh4 {[%clk
0:00:13.2]} 55... Qg4+ {[%clk 0:00:05.3]} 0-1

[Event "Live Chess"]
[Site "Chess.com"]
[Date "2023.05.20"]
[Round "-"]
[White "Duke_of_Bebington"]
[Black "trekker123"]
[Result "0-1"]
[WhiteElo "1585"]
[BlackElo "2096"]
[TimeControl "300"]
[EndTime "13:57:30 PDT"]
[Termination "trekker123 won by resignation"]

1. e4 {[%clk 0:04:58.2]} 1... c6 {[%clk 0:04:58.9]} 2. d4 {[%clk 0:04:56.5]}
2... d5 {[%clk 0:04:58.6]} 3. e5 {[%clk 0:04:54.2]} 3... c5 {[%clk 0:04:57.7]}
4. c3 {[%clk 0:04:45.8]} 4... Nc6 {[%clk 0:04:53.3]} 5. Nf3 {[%clk 0:04:43.7]}
5... Bg4 {[%clk 0:04:52.7]} 6. Be3 {[%clk 0:04:40.5]} 6... cxd4 {[%clk
0:04:49.9]} 7. cxd4 {[%clk 0:04:39.3]} 7... Qb6 {[%clk 0:04:47.9]} 8. Qb3 {[%clk
0:04:33.7]} 8... Qxb3 {[%clk 0:04:44]} 9. axb3 {[%clk 0:04:32.5]} 9... Bxf3
{[%clk 0:04:41.4]} 10. gxf3 {[%clk 0:04:32.4]} 10... e6 {[%clk 0:04:39.1]} 11.
Nc3 {[%clk 0:04:29.6]} 11... Bb4 {[%clk 0:04:22.4]} 12. Bb5 {[%clk 0:04:20.4]}
12... Ne7 {[%clk 0:04:19.1]} 13. O-O {[%clk 0:04:17.5]} 13... O-O {[%clk
0:04:13]} 14. Kh1 {[%clk 0:04:10.9]} 14... Rfc8 {[%clk 0:04:04.7]} 15. Rg1
{[%clk 0:04:08.3]} 15... Nf5 {[%clk 0:03:53.5]} 16. Bd3 {[%clk 0:04:00]} 16...
Nce7 {[%clk 0:03:43.4]} 17. Bg5 {[%clk 0:03:49.1]} 17... Bxc3 {[%clk 0:03:37.4]}
18. bxc3 {[%clk 0:03:47.3]} 18... Rxc3 {[%clk 0:03:33.7]} 19. Bxe7 {[%clk
0:03:40.5]} 19... Rxd3 {[%clk 0:03:24.6]} 20. Bc5 {[%clk 0:03:36.3]} 0-1

[Event "Live Chess"]
[Site "Chess.com"]
[Date "2023.05.20"]
[Round "-"]
[White "EdenHazard8"]
[Black "Pandreq"]
[Result "1-0"]
[WhiteElo "2068"]
[BlackElo "1261"]
[TimeControl "300"]
[EndTime "13:57:36 PDT"]
[Termination "EdenHazard8 won by resignation"]

1. e4 {[%clk 0:04:59.1]} 1... Nf6 {[%clk 0:04:58.6]} 2. e5 {[%clk 0:04:58.2]}
2... Nd5 {[%clk 0:04:57.6]} 3. c4 {[%clk 0:04:57.5]} 3... Nb6 {[%clk 0:04:56.5]}
4. a4 {[%clk 0:04:56.6]} 4... d6 {[%clk 0:04:54.7]} 5. a5 {[%clk 0:04:54.8]}
5... N6d7 {[%clk 0:04:53.8]} 6. exd6 {[%clk 0:04:53.9]} 6... cxd6 {[%clk
0:04:53.7]} 7. d4 {[%clk 0:04:53.5]} 7... Nc6 {[%clk 0:04:52.3]} 8. Nc3 {[%clk
0:04:52.2]} 8... g6 {[%clk 0:04:49.5]} 9. Nf3 {[%clk 0:04:50.9]} 9... Bg7 {[%clk
0:04:47.6]} 10. Be2 {[%clk 0:04:50]} 10... O-O {[%clk 0:04:44.8]} 11. Be3 {[%clk
0:04:49.6]} 11... Nb4 {[%clk 0:04:37.6]} 12. Qa4 {[%clk 0:04:43.3]} 12... Nc6
{[%clk 0:04:29.3]} 13. O-O {[%clk 0:04:41.2]} 13... b6 {[%clk 0:04:21]} 14. Qxc6
{[%clk 0:04:39.2]} 1-0

[Event "Live Chess"]
[Site "Chess.com"]
[Date "2023.05.20"]
[Round "-"]
[White "GEMdzq"]
[Black "manthanit"]
[Result "1-0"]
[WhiteElo "2221"]
[BlackElo "1017"]
[TimeControl "300"]
[EndTime "13:57:37 PDT"]
[Termination "GEMdzq won by checkmate"]

1. e4 {[%clk 0:04:58.5]} 1... Nf6 {[%clk 0:04:57.2]} 2. e5 {[%clk 0:04:57.4]}
2... Ne4 {[%clk 0:04:56.5]} 3. d4 {[%clk 0:04:54.3]} 3... d6 {[%clk 0:04:53.3]}
4. f3 {[%clk 0:04:50.9]} 4... dxe5 {[%clk 0:04:42]} 5. fxe4 {[%clk 0:04:39.7]}
5... exd4 {[%clk 0:04:40.8]} 6. Nf3 {[%clk 0:04:37.8]} 6... Nc6 {[%clk
0:04:38.1]} 7. Bc4 {[%clk 0:04:36.2]} 7... e5 {[%clk 0:04:36.8]} 8. c3 {[%clk
0:04:29.6]} 8... Bg4 {[%clk 0:04:33.6]} 9. O-O {[%clk 0:04:26.1]} 9... Bc5
{[%clk 0:04:23.5]} 10. Bxf7+ {[%clk 0:04:15.7]} 10... Ke7 {[%clk 0:04:15.7]} 11.
Bg5+ {[%clk 0:04:13.4]} 11... Kxf7 {[%clk 0:04:02.8]} 12. Nxe5+ {[%clk
0:04:11.5]} 12... Ke6 {[%clk 0:03:32.7]} 13. Qxg4+ {[%clk 0:04:09.2]} 13... Kd6
{[%clk 0:03:28.3]} 14. Nf7# {[%clk 0:04:04.9]} 1-0

[Event "Live Chess"]
[Site "Chess.com"]
[Date "2023.05.20"]
[Round "-"]
[White "LodeshChess"]
[Black "siddu198"]
[Result "0-1"]
[WhiteElo "1097"]
[BlackElo "1643"]
[TimeControl "300"]
[EndTime "13:57:41 PDT"]
[Termination "siddu198 won by resignation"]

1. e4 {[%clk 0:04:59.4]} 1... e5 {[%clk 0:04:57.7]} 2. Nf3 {[%clk 0:04:58.6]}
2... Nc6 {[%clk 0:04:57]} 3. c3 {[%clk 0:04:56.6]} 3... Bc5 {[%clk 0:04:56.3]}
4. d4 {[%clk 0:04:55.7]} 4... exd4 {[%clk 0:04:56.2]} 5. cxd4 {[%clk 0:04:54.9]}
5... Bb4+ {[%clk 0:04:55.7]} 6. Nc3 {[%clk 0:04:53.5]} 6... Bxc3+ {[%clk
0:04:54.6]} 7. bxc3 {[%clk 0:04:52.5]} 7... Nge7 {[%clk 0:04:50]} 8. Bd3 {[%clk
0:04:51.5]} 8... O-O {[%clk 0:04:48.7]} 9. e5 {[%clk 0:04:51]} 9... Ng6 {[%clk
0:04:47.9]} 10. O-O {[%clk 0:04:48.4]} 10... d6 {[%clk 0:04:47.5]} 11. Bb5
{[%clk 0:04:45.4]} 11... dxe5 {[%clk 0:04:46.2]} 12. Bxc6 {[%clk 0:04:44.7]}
12... bxc6 {[%clk 0:04:43.5]} 13. Nxe5 {[%clk 0:04:44]} 13... Nxe5 {[%clk
0:04:40.8]} 14. dxe5 {[%clk 0:04:43.5]} 14... Qxd1 {[%clk 0:04:40.2]} 15. Rxd1
{[%clk 0:04:42.9]} 15... Be6 {[%clk 0:04:39]} 16. Be3 {[%clk 0:04:38.4]} 16...
a6 {[%clk 0:04:29.8]} 17. Rdb1 {[%clk 0:04:33.9]} 17... Rab8 {[%clk 0:04:27.9]}
18. Ba7 {[%clk 0:04:27]} 18... Rb5 {[%clk 0:04:20.2]} 19. a4 {[%clk 0:04:19.9]}
19... Rxe5 {[%clk 0:04:17.8]} 20. Rb7 {[%clk 0:04:11.1]} 20... Rc8 {[%clk
0:03:47.6]} 21. Rab1 {[%clk 0:04:05.4]} 21... Rd5 {[%clk 0:03:40.3]} 22. Rb8
{[%clk 0:04:02.6]} 22... Rdd8 {[%clk 0:03:39]} 23. Rxc8 {[%clk 0:03:59.6]} 23...
Rxc8 {[%clk 0:03:37.3]} 24. g3 {[%clk 0:03:52.5]} 24... Bd5 {[%clk 0:03:35.4]}
25. f4 {[%clk 0:03:49.9]} 25... h6 {[%clk 0:03:28.2]} 26. Rb8 {[%clk 0:03:45.6]}
26... Rf8 {[%clk 0:03:05.9]} 27. Rxf8+ {[%clk 0:03:41.8]} 27... Kxf8 {[%clk
0:03:05.8]} 28. Bb8 {[%clk 0:03:41.3]} 28... Ke7 {[%clk 0:03:05]} 29. Bxc7
{[%clk 0:03:40.8]} 29... Kd7 {[%clk 0:03:04.2]} 30. Be5 {[%clk 0:03:40.4]} 30...
f6 {[%clk 0:03:02.6]} 31. Kf2 {[%clk 0:03:37.5]} 31... fxe5 {[%clk 0:03:00.7]}
0-1

[Event "Live Chess"]
[Site "Chess.com"]
[Date "2023.05.20"]
[Round "-"]
[White "Inglaterra"]
[Black "SiDebanks"]
[Result "1-0"]
[WhiteElo "2048"]
[BlackElo "1357"]
[TimeControl "300"]
[EndTime "13:57:44 PDT"]
[Termination "Inglaterra won by resignation"]

1. e4 {[%clk 0:04:58.9]} 1... c6 {[%clk 0:04:57.1]} 2. Nc3 {[%clk 0:04:56.1]}
2... d5 {[%clk 0:04:57]} 3. Nf3 {[%clk 0:04:55.2]} 3... dxe4 {[%clk 0:04:56.3]}
4. Nxe4 {[%clk 0:04:55.1]} 4... Nf6 {[%clk 0:04:55.8]} 5. Nxf6+ {[%clk
0:04:52.3]} 5... exf6 {[%clk 0:04:55.1]} 6. d4 {[%clk 0:04:50.9]} 6... Bd6
{[%clk 0:04:52]} 7. c3 {[%clk 0:04:50.2]} 7... O-O {[%clk 0:04:50.8]} 8. Be2
{[%clk 0:04:49.6]} 8... Re8 {[%clk 0:04:50.2]} 9. O-O {[%clk 0:04:49]} 9... Nd7
{[%clk 0:04:40.9]} 10. Be3 {[%clk 0:04:42.3]} 10... Nf8 {[%clk 0:04:36.8]} 11.
Qd2 {[%clk 0:04:40.4]} 11... Bg4 {[%clk 0:04:11.2]} 12. h3 {[%clk 0:04:30.4]}
12... Bf5 {[%clk 0:03:51.5]} 13. Nh4 {[%clk 0:04:23.6]} 13... Bg6 {[%clk
0:03:45.7]} 14. Bd3 {[%clk 0:04:18.9]} 14... Qd7 {[%clk 0:03:14.2]} 15. Rae1
{[%clk 0:04:08.1]} 15... Re7 {[%clk 0:03:06.6]} 16. Nxg6 {[%clk 0:04:01.7]}
16... Nxg6 {[%clk 0:03:04.9]} 17. Qc2 {[%clk 0:03:48.5]} 17... Rae8 {[%clk
0:02:56.5]} 18. Bd2 {[%clk 0:03:40.1]} 18... h6 {[%clk 0:02:02.5]} 19. Bxg6
{[%clk 0:03:30]} 19... fxg6 {[%clk 0:02:02.4]} 20. Qxg6 {[%clk 0:03:25.1]} 20...
Rxe1 {[%clk 0:02:00.6]} 21. Rxe1 {[%clk 0:03:24.5]} 21... Rxe1+ {[%clk
0:01:46.6]} 22. Bxe1 {[%clk 0:03:24.4]} 22... Qe6 {[%clk 0:01:43.3]} 23. Bd2
{[%clk 0:03:12.3]} 23... Qe2 {[%clk 0:01:32.3]} 24. Qc2 {[%clk 0:02:42.3]} 24...
Bf4 {[%clk 0:01:16.4]} 25. Qb3+ {[%clk 0:02:34]} 25... Kh7 {[%clk 0:01:01.5]}
26. Bxf4 {[%clk 0:02:22.6]} 26... Qe1+ {[%clk 0:00:58.9]} 27. Kh2 {[%clk
0:02:21.2]} 27... Qxf2 {[%clk 0:00:57.4]} 28. Bg3 {[%clk 0:02:19.5]} 1-0

[Event "Live Chess"]
[Site "Chess.com"]
[Date "2023.05.20"]
[Round "-"]
[White "weibs440"]
[Black "WelshTiger"]
[Result "0-1"]
[WhiteElo "927"]
[BlackElo "2396"]
[TimeControl "300"]
[EndTime "13:57:47 PDT"]
[Termination "WelshTiger won by resignation"]

1. e4 {[%clk 0:04:59.1]} 1... c6 {[%clk 0:04:56.7]} 2. d4 {[%clk 0:04:57.4]}
2... d5 {[%clk 0:04:56.6]} 3. f3 {[%clk 0:04:56.7]} 3... dxe4 {[%clk 0:04:53.9]}
4. fxe4 {[%clk 0:04:55.5]} 4... e5 {[%clk 0:04:53.2]} 5. Nf3 {[%clk 0:04:53.4]}
5... Bg4 {[%clk 0:04:41.6]} 6. Bc4 {[%clk 0:04:51.4]} 6... Nd7 {[%clk
0:04:40.3]} 7. Bxf7+ {[%clk 0:04:44.4]} 7... Kxf7 {[%clk 0:04:37.8]} 8. Ng5+
{[%clk 0:04:43]} 8... Qxg5 {[%clk 0:04:34.7]} 9. Bxg5 {[%clk 0:04:40.4]} 9...
Bxd1 {[%clk 0:04:33.5]} 10. Kxd1 {[%clk 0:04:39.7]} 10... exd4 {[%clk
0:04:32.3]} 11. Rf1+ {[%clk 0:04:35.8]} 11... Ngf6 {[%clk 0:04:30.8]} 12. c3
{[%clk 0:04:27.6]} 12... dxc3 {[%clk 0:04:28.7]} 13. Nxc3 {[%clk 0:04:27.5]}
13... Bd6 {[%clk 0:04:27.5]} 14. Kc2 {[%clk 0:04:24.5]} 14... Be5 {[%clk
0:04:26.8]} 15. Bxf6 {[%clk 0:04:09.4]} 15... Nxf6 {[%clk 0:04:23.7]} 16. Rad1
{[%clk 0:04:06.3]} 16... Rad8 {[%clk 0:04:21.9]} 17. Rxd8 {[%clk 0:03:49.3]}
17... Rxd8 {[%clk 0:04:21.8]} 18. Rf5 {[%clk 0:03:48.4]} 18... Ke6 {[%clk
0:04:20.1]} 19. Na4 {[%clk 0:03:38.4]} 19... b6 {[%clk 0:04:18]} 20. h3 {[%clk
0:03:34.2]} 20... Nxe4 {[%clk 0:04:15]} 0-1

[Event "Live Chess"]
[Site "Chess.com"]
[Date "2023.05.20"]
[Round "-"]
[White "seabuck"]
[Black "ExIsambard"]
[Result "1-0"]
[WhiteElo "1877"]
[BlackElo "1989"]
[TimeControl "300"]
[EndTime "13:57:48 PDT"]
[Termination "seabuck won on time"]

1. d4 {[%clk 0:04:58.3]} 1... Nf6 {[%clk 0:04:57.3]} 2. c4 {[%clk 0:04:57.2]}
2... e5 {[%clk 0:04:55.6]} 3. e3 {[%clk 0:04:54.9]} 3... e4 {[%clk 0:04:53.4]}
4. Nc3 {[%clk 0:04:52.9]} 4... Bb4 {[%clk 0:04:52.6]} 5. Qc2 {[%clk 0:04:46.6]}
5... Bxc3+ {[%clk 0:04:51.2]} 6. Qxc3 {[%clk 0:04:45.4]} 6... c6 {[%clk
0:04:46.6]} 7. b3 {[%clk 0:04:43.7]} 7... O-O {[%clk 0:04:43.9]} 8. Ba3 {[%clk
0:04:41.9]} 8... Re8 {[%clk 0:04:42]} 9. Ne2 {[%clk 0:04:33.2]} 9... d5 {[%clk
0:04:40.7]} 10. Nf4 {[%clk 0:04:25.8]} 10... Bf5 {[%clk 0:04:36]} 11. cxd5
{[%clk 0:04:10.6]} 11... Nxd5 {[%clk 0:04:28.5]} 12. Nxd5 {[%clk 0:04:08.6]}
12... cxd5 {[%clk 0:04:27.8]} 13. Bb5 {[%clk 0:04:04.9]} 13... Re6 {[%clk
0:04:23.7]} 14. Rc1 {[%clk 0:03:48.8]} 14... Nc6 {[%clk 0:04:21.8]} 15. O-O
{[%clk 0:03:40]} 15... h6 {[%clk 0:04:17.3]} 16. Bxc6 {[%clk 0:03:36.6]} 16...
bxc6 {[%clk 0:04:09.5]} 17. f4 {[%clk 0:03:22.1]} 17... Rg6 {[%clk 0:04:05.3]}
18. Qd2 {[%clk 0:03:13.5]} 18... Bh3 {[%clk 0:03:50.2]} 19. Rf2 {[%clk
0:03:11.8]} 19... Bf5 {[%clk 0:03:33.3]} 20. Rc5 {[%clk 0:03:00.4]} 20... h5
{[%clk 0:03:31.3]} 21. Qc3 {[%clk 0:02:50.3]} 21... Qd7 {[%clk 0:03:29.3]} 22.
Rc2 {[%clk 0:02:46.5]} 22... Rc8 {[%clk 0:03:27.8]} 23. Ra5 {[%clk 0:02:36.6]}
23... Bg4 {[%clk 0:03:02.1]} 24. Qc5 {[%clk 0:02:22.3]} 24... Bd1 {[%clk
0:02:54.3]} 25. Rf2 {[%clk 0:02:16.9]} 25... Qg4 {[%clk 0:02:28.3]} 26. Qc1
{[%clk 0:01:48.9]} 26... Bf3 {[%clk 0:02:07.1]} 27. Qd2 {[%clk 0:01:46.4]} 27...
h4 {[%clk 0:01:59.3]} 28. Rxa7 {[%clk 0:01:39]} 28... h3 {[%clk 0:01:30.2]} 29.
g3 {[%clk 0:01:36.4]} 29... Bg2 {[%clk 0:01:29.3]} 30. f5 {[%clk 0:01:25.7]}
30... Rf6 {[%clk 0:01:22.7]} 31. Be7 {[%clk 0:01:12]} 31... Rxf5 {[%clk
0:01:20]} 32. Rxf5 {[%clk 0:01:10.9]} 32... Qxf5 {[%clk 0:01:18.8]} 33. Qf2
{[%clk 0:01:08.6]} 33... Bf3 {[%clk 0:01:10.2]} 34. Bd6 {[%clk 0:00:58.5]} 34...
Qe6 {[%clk 0:00:58.1]} 35. Bc5 {[%clk 0:00:48.8]} 35... Rd8 {[%clk 0:00:39.9]}
36. b4 {[%clk 0:00:46.8]} 36... Rd7 {[%clk 0:00:38.2]} 37. Ra8+ {[%clk 0:00:39]}
37... Kh7 {[%clk 0:00:36.9]} 38. a4 {[%clk 0:00:33.9]} 38... Rb7 {[%clk
0:00:34.7]} 39. a5 {[%clk 0:00:31.9]} 39... Qd7 {[%clk 0:00:32.8]} 40. a6 {[%clk
0:00:29.1]} 40... Rc7 {[%clk 0:00:23.5]} 41. Rb8 {[%clk 0:00:23.5]} 41... Ra7
{[%clk 0:00:12.8]} 42. Bxa7 {[%clk 0:00:20.2]} 42... Qxa7 {[%clk 0:00:11.8]} 43.
Rf8 {[%clk 0:00:15.5]} 43... Qxa6 {[%clk 0:00:10.5]} 44. Qf1 {[%clk 0:00:14.2]}
44... Qa2 {[%clk 0:00:07.7]} 45. Qxh3+ {[%clk 0:00:12.8]} 45... Kg6 {[%clk
0:00:05]} 46. Qf1 {[%clk 0:00:10.2]} 46... Qd2 {[%clk 0:00:01.7]} 47. Rc8 {[%clk
0:00:08]} 1-0

[Event "Live Chess"]
[Site "Chess.com"]
[Date "2023.05.20"]
[Round "-"]
[White "JoeyCage"]
[Black "KGreenGator"]
[Result "1-0"]
[WhiteElo "2311"]
[BlackElo "1770"]
[TimeControl "300"]
[EndTime "13:57:50 PDT"]
[Termination "JoeyCage won by resignation"]

1. e4 {[%clk 0:04:53.1]} 1... c5 {[%clk 0:04:58.5]} 2. Nf3 {[%clk 0:04:44.3]}
2... Nc6 {[%clk 0:04:55.9]} 3. d4 {[%clk 0:04:43.2]} 3... cxd4 {[%clk
0:04:53.6]} 4. Nxd4 {[%clk 0:04:42.5]} 4... e5 {[%clk 0:04:51.7]} 5. Nb5 {[%clk
0:04:41.3]} 5... d6 {[%clk 0:04:49.3]} 6. N1c3 {[%clk 0:04:39.9]} 6... a6 {[%clk
0:04:48.5]} 7. Na3 {[%clk 0:04:38.7]} 7... Nf6 {[%clk 0:04:45.9]} 8. Bg5 {[%clk
0:04:37]} 8... Be7 {[%clk 0:04:44.5]} 9. Bxf6 {[%clk 0:04:35.2]} 9... Bxf6
{[%clk 0:04:44.1]} 10. Nc4 {[%clk 0:04:34.4]} 10... Be7 {[%clk 0:04:40.9]} 11.
Nd5 {[%clk 0:04:33.1]} 11... b5 {[%clk 0:04:36.1]} 12. Ncb6 {[%clk 0:04:31]}
12... Rb8 {[%clk 0:04:33.7]} 13. Nxc8 {[%clk 0:04:29.6]} 13... Rxc8 {[%clk
0:04:32.2]} 14. Bd3 {[%clk 0:04:28.4]} 14... O-O {[%clk 0:04:28.5]} 15. O-O
{[%clk 0:04:26.5]} 15... Qd7 {[%clk 0:04:24.4]} 16. Nb6 {[%clk 0:04:23.9]} 16...
Qc7 {[%clk 0:04:23.4]} 17. Nxc8 {[%clk 0:04:22.6]} 17... Rxc8 {[%clk 0:04:22.5]}
18. c3 {[%clk 0:04:21.8]} 18... Qd7 {[%clk 0:04:20.5]} 19. a4 {[%clk 0:04:20.4]}
19... Na7 {[%clk 0:04:18]} 20. axb5 {[%clk 0:04:18.6]} 20... axb5 {[%clk
0:04:17.5]} 21. Qb3 {[%clk 0:04:15.8]} 21... Rb8 {[%clk 0:04:13.6]} 22. Qd5
{[%clk 0:04:13.4]} 22... Qc6 {[%clk 0:04:10]} 23. Rxa7 {[%clk 0:04:10.1]} 1-0

[Event "Live Chess"]
[Site "Chess.com"]
[Date "2023.05.20"]
[Round "-"]
[White "defenderalist"]
[Black "JoshMcK"]
[Result "1-0"]
[WhiteElo "1619"]
[BlackElo "1561"]
[TimeControl "300"]
[EndTime "13:57:53 PDT"]
[Termination "defenderalist won by resignation"]

1. e4 {[%clk 0:04:59.1]} 1... c6 {[%clk 0:04:58.2]} 2. Nf3 {[%clk 0:04:58.1]}
2... d5 {[%clk 0:04:58.1]} 3. exd5 {[%clk 0:04:57.2]} 3... cxd5 {[%clk
0:04:57.4]} 4. d4 {[%clk 0:04:56.4]} 4... Nf6 {[%clk 0:04:56.8]} 5. g3 {[%clk
0:04:54.8]} 5... Nc6 {[%clk 0:04:54.4]} 6. Bg2 {[%clk 0:04:54.2]} 6... g6 {[%clk
0:04:52.6]} 7. c3 {[%clk 0:04:53.1]} 7... Bg7 {[%clk 0:04:52.5]} 8. Bg5 {[%clk
0:04:51.6]} 8... O-O {[%clk 0:04:52.4]} 9. Qd2 {[%clk 0:04:51]} 9... Ne4 {[%clk
0:04:41.6]} 10. Qc1 {[%clk 0:04:44.3]} 10... Nxg5 {[%clk 0:04:33.2]} 11. Nxg5
{[%clk 0:04:43.2]} 11... e5 {[%clk 0:04:29.2]} 12. dxe5 {[%clk 0:04:34.1]} 12...
Nxe5 {[%clk 0:04:27.1]} 13. O-O {[%clk 0:04:33.2]} 13... Nd3 {[%clk 0:04:20.2]}
14. Qd2 {[%clk 0:04:27.7]} 14... Bf5 {[%clk 0:04:18.2]} 15. Nf3 {[%clk
0:04:21.1]} 15... Re8 {[%clk 0:04:10.2]} 16. Nd4 {[%clk 0:04:19.9]} 16... Bxd4
{[%clk 0:04:02.2]} 17. cxd4 {[%clk 0:04:16.6]} 17... Re6 {[%clk 0:03:56.2]} 18.
Nc3 {[%clk 0:04:10.2]} 18... Qe7 {[%clk 0:03:54.6]} 19. Nxd5 {[%clk 0:04:00.6]}
19... Qd7 {[%clk 0:03:53.2]} 20. g4 {[%clk 0:03:38.9]} 20... Be4 {[%clk
0:03:26.9]} 21. Bxe4 {[%clk 0:03:36.4]} 21... Rxe4 {[%clk 0:03:26.8]} 22. Nf6+
{[%clk 0:03:35.1]} 1-0

[Event "Live Chess"]
[Site "Chess.com"]
[Date "2023.05.20"]
[Round "-"]
[White "DmitryVasliev"]
[Black "DRS44"]
[Result "1-0"]
[WhiteElo "1672"]
[BlackElo "1402"]
[TimeControl "300"]
[EndTime "13:57:54 PDT"]
[Termination "DmitryVasliev won on time"]

1. e4 {[%clk 0:04:59]} 1... e5 {[%clk 0:04:50.6]} 2. f4 {[%clk 0:04:57.5]} 2...
exf4 {[%clk 0:04:42.2]} 3. Nf3 {[%clk 0:04:56.7]} 3... d6 {[%clk 0:04:36.8]} 4.
d4 {[%clk 0:04:53.5]} 4... g5 {[%clk 0:04:32.1]} 5. Bc4 {[%clk 0:04:51.4]} 5...
Bg7 {[%clk 0:04:16.2]} 6. O-O {[%clk 0:04:49.5]} 6... h6 {[%clk 0:04:09.3]} 7.
Nc3 {[%clk 0:04:39.1]} 7... Nf6 {[%clk 0:04:01.9]} 8. e5 {[%clk 0:04:33.7]} 8...
dxe5 {[%clk 0:03:48.1]} 9. Nxe5 {[%clk 0:04:31.5]} 9... Be6 {[%clk 0:03:42.5]}
10. d5 {[%clk 0:03:57.6]} 10... Qd6 {[%clk 0:03:38.2]} 11. Re1 {[%clk
0:03:49.7]} 11... Bd7 {[%clk 0:03:05.3]} 12. Nd3+ {[%clk 0:02:50.5]} 12... Kd8
{[%clk 0:02:43.2]} 13. Kh1 {[%clk 0:02:49]} 13... Re8 {[%clk 0:02:32.2]} 14. Nb5
{[%clk 0:02:40.7]} 14... Rxe1+ {[%clk 0:02:18.9]} 15. Nxe1 {[%clk 0:02:28.5]}
15... Bxb5 {[%clk 0:01:50.3]} 16. Bxb5 {[%clk 0:02:26.7]} 16... Qxd5 {[%clk
0:01:40.9]} 17. Qe2 {[%clk 0:02:13.9]} 17... Qe4 {[%clk 0:01:24.1]} 18. Qd2+
{[%clk 0:02:05.5]} 18... Qd5 {[%clk 0:01:17.1]} 19. Bd3 {[%clk 0:02:02.8]} 19...
Nc6 {[%clk 0:01:10.1]} 20. Nf3 {[%clk 0:01:57.2]} 20... Qc5 {[%clk 0:00:59.9]}
21. h3 {[%clk 0:01:49.4]} 21... Qe3 {[%clk 0:00:54]} 22. Qd1 {[%clk 0:01:43.4]}
22... Qf2 {[%clk 0:00:46.8]} 23. Be4+ {[%clk 0:00:55.4]} 23... Ke8 {[%clk
0:00:28.8]} 24. Bxc6+ {[%clk 0:00:40.6]} 24... Kf8 {[%clk 0:00:24.4]} 25. Qe1
{[%clk 0:00:16.8]} 25... Qxe1+ {[%clk 0:00:16.7]} 26. Nxe1 {[%clk 0:00:15.1]}
26... Rd8 {[%clk 0:00:13.9]} 27. b3 {[%clk 0:00:08.3]} 27... bxc6 {[%clk
0:00:08.2]} 28. Ba3+ {[%clk 0:00:06.9]} 1-0